[Event "FIDE WYCC Girls U18 2023"]
[Site "Montesilvano"]
[Date "2023.11.18"]
[Round "6.22"]
[White "Tsapaki, Asimenia"]
[Black "Menon, Gauri"]
[Result "1/2-1/2"]
[ECO "C45"]
[WhiteElo "1702"]
[BlackElo "1821"]
[Annotator "NA"]
[PlyCount "92"]
[EventDate "2023.11.13"]
[EventType "swiss"]
[EventCountry "ITA"]
[SourceTitle "playchess.com"]
[Source "ChessBase"]
[SourceQuality "1"]
[TimeControl "40/5400+30:1800+30"]

1. e4 {[%emt 0:00:04]} e5 {[%emt 0:00:06]} 2. Nf3 {[%emt 0:00:06]} Nc6 {[%emt 0:00:05]} 3. d4 {[%emt 0:00:06]} exd4 {[%emt 0:00:03]} 4. Nxd4 {[%emt 0:00:10]} Nf6 {[%emt 0:00:24]} 5. Nxc6 {[%emt 0:00:10]} bxc6 {[%emt 0:00:21]} 6. Nd2 {[%emt 0:00:17]} Bc5 {[%emt 0:04:36]} 7. Nb3 {[%emt 0:00:10]} Bb6 {[%emt 0:02:01]} 8. e5 {[%emt 0:00:30]} Qe7 {[%emt 0:01:56]} 9. Qe2 {[%emt 0:00:14]} Nd5 {[%emt 0:05:02]} 10. c4 {[%emt 0:00:14]} Ba6 {[%emt 0:05:03]} 11. h4 {[%emt 0:12:52]} h6 {[%emt 0:04:31]} 12. a3 {[%emt 0:23:06]} O-O {[%emt 0:27:08]} 13. Bd2 {[%emt 0:10:44]} d6 {[%emt 0:13:56]} 14. f4 {[%emt 0:05:14]} Qd7 {[%emt 0:05:57]} 15. O-O-O {[%emt 0:02:13]} Ne7 {[%emt 0:02:22]} 16. Qf3 {[%emt 0:07:34]} Bc8 {[%emt 0:04:30]} 17. Be2 {[%emt 0:08:17]} a5 {[%emt 0:02:37]} 18. Bc3 {[%emt 0:02:45]} a4 {[%emt 0:03:31]} 19. Nd2 {[%emt 0:02:59]} d5 {[%emt 0:00:18]} 20. g4 {[%emt 0:02:00]} Bb7 {[%emt 0:03:33]} 21. f5 {[%emt 0:04:49]} d4 {[%emt 0:00:47]} 22. Ne4 {[%emt 0:00:16]} c5 {[%emt 0:00:59]} 23. Bd2 {[%emt 0:01:18]} Nc6 {[%emt 0:03:32]} 24. Bxh6 {[%emt 0:06:23]} Nxe5 {[%emt 0:00:39]} 25. Nf6+ {[%emt 0:01:04]} gxf6 {[%emt 0:00:29]} 26. Qxb7 {[%emt 0:00:22]} Rfd8 {[%emt 0:01:34]} 27. Qe4 {[%emt 0:02:01]} d3 {[%emt 0:00:34]} 28. Rh3 {[%emt 0:00:56]} Qd4 {[%emt 0:00:30]} 29. Bxd3 {[%emt 0:02:48]} Qxe4 {[%emt 0:02:46]} 30. Bxe4 {[%emt 0:00:07]} Rxd1+ {[%emt 0:00:08]} 31. Kxd1 {[%emt 0:00:04]} Rd8+ {[%emt 0:00:08]} 32. Ke2 {[%emt 0:04:41]} Nxc4 {[%emt 0:01:12]} 33. Bd3 {[%emt 0:01:15]} Nxb2 {[%emt 0:02:52]} 34. Bc1 {[%emt 0:00:19]} Re8+ {[%emt 0:01:14]} 35. Re3 {[%emt 0:01:03]} Rxe3+ {[%emt 0:00:32]} 36. Bxe3 {[%emt 0:00:09]} c4 {[%emt 0:00:50]} 37. Bc2 {[%emt 0:00:19]} c3 {[%emt 0:01:17]} 38. Bc1 {[%emt 0:01:17]} Bc5 {[%emt 0:00:41]} 39. Bxb2 {[%emt 0:00:32]} cxb2 {[%emt 0:00:07]} 40. Kd3 {[%emt 0:00:00]} Bxa3 {[%emt 0:00:00]} 41. Kc3 {[%emt 0:00:58]} c5 {[%emt 0:08:40]} 42. Bd3 {[%emt 0:04:24]} Kg7 {[%emt 0:11:22]} 43. Kc2 {[%emt 0:01:05]} Bb4 {[%emt 0:02:07]} 44. Kxb2 {[%emt 0:00:11]} a3+ {[%emt 0:01:39]} 45. Kb3 {[%emt 0:00:13]} c4+ {[%emt 0:02:46]} 46. Bxc4 {[%emt 0:00:10]} Bd6 {[%emt 0:00:05]} 1/2-1/2

[Event "FIDE WYCC Girls U18 2023"]
[Site "Montesilvano"]
[Date "2023.11.18"]
[Round "6.23"]
[White "Swara Lakshmi S Nair"]
[Black "Follana Albelda, Lucia"]
[Result "*"]
[ECO "B94"]
[WhiteElo "1659"]
[BlackElo "1946"]
[Annotator "NA"]
[PlyCount "69"]
[EventDate "2023.11.13"]
[EventType "swiss"]
[EventCountry "ITA"]
[SourceTitle "playchess.com"]
[Source "ChessBase"]
[SourceQuality "1"]
[TimeControl "40/5400+30:1800+30"]

1. e4 {[%emt 0:02:10]} c5 {[%emt 0:00:05]} 2. Nf3 {[%emt 0:00:09]} d6 {[%emt 0:00:10]} 3. d4 {[%emt 0:00:06]} cxd4 {[%emt 0:00:04]} 4. Nxd4 {[%emt 0:00:06]} Nf6 {[%emt 0:00:05]} 5. Nc3 {[%emt 0:00:07]} a6 {[%emt 0:00:07]} 6. Bg5 {[%emt 0:00:21]} Nbd7 {[%emt 0:00:06]} 7. f4 {[%emt 0:00:10]} Qc7 {[%emt 0:00:18]} 8. Qf3 {[%emt 0:00:09]} b5 {[%emt 0:00:08]} 9. O-O-O {[%emt 0:03:37]} Bb7 {[%emt 0:00:49]} 10. Bd3 {[%emt 0:00:08]} g6 {[%emt 0:01:31]} 11. Rhe1 {[%emt 0:03:45]} Bg7 {[%emt 0:00:47]} 12. Nd5 {[%emt 0:00:57]} Nxd5 {[%emt 0:00:15]} 13. exd5 {[%emt 0:00:02]} Nf6 {[%emt 0:01:57]} 14. Nc6 {[%emt 0:05:54]} Bxc6 {[%emt 0:00:07]} 15. dxc6 {[%emt 0:00:01]} d5 {[%emt 0:00:17]} 16. Qe3 {[%emt 0:25:11]} O-O {[%emt 0:00:12]} 17. Qxe7 {[%emt 0:01:24]} Qxc6 {[%emt 0:00:06]} 18. f5 {[%emt 0:04:39]} Rfe8 {[%emt 0:08:38]} 19. Qb4 {[%emt 0:01:14]} Ne4 {[%emt 0:05:47]} 20. Bxe4 {[%emt 0:12:52]} dxe4 {[%emt 0:00:33]} 21. Rd6 {[%emt 0:07:36]} Qc7 {[%emt 0:07:51]} 22. Qd2 {[%emt 0:03:25]} Qc4 {[%emt 0:12:52]} 23. Kb1 {[%emt 0:01:23]} a5 {[%emt 0:07:23]} 24. f6 {[%emt 0:07:57]} Bf8 {[%emt 0:01:24]} 25. Rd4 {[%emt 0:00:25]} Qc6 {[%emt 0:02:30]} 26. Qf4 {[%emt 0:05:34]} e3 {[%emt 0:10:32]} 27. Rxe3 {[%emt 0:02:57]} Qxg2 {[%emt 0:00:13]} 28. Rd1 {[%emt 0:09:30]} Rac8 {[%emt 0:02:25]} 29. c3 {[%emt 0:02:26]} b4 {[%emt 0:06:40]} 30. Rxe8 {[%emt 0:00:17]} Rxe8 {[%emt 0:01:08]} 31. Qg3 {[%emt 0:00:23]} Qe4+ {[%emt 0:06:58]} 32. Qd3 {[%emt 0:00:50]} Qe5 {[%emt 0:00:33]} 33. h4 {[%emt 0:00:39]} h6 {[%emt 0:00:35]} 34. Bd2 {[%emt 0:00:07]} Qxf6 {[%emt 0:00:15]} 35. cxb4 {[%emt 0:00:05]} *

[Event "FIDE WYCC Girls U18 2023"]
[Site "Montesilvano"]
[Date "2023.11.18"]
[Round "6.24"]
[White "Zubova, Darja"]
[Black "Katter, Katharina"]
[Result "*"]
[ECO "C47"]
[WhiteElo "1582"]
[BlackElo "1887"]
[Annotator "NA"]
[PlyCount "89"]
[EventDate "2023.11.13"]
[EventType "swiss"]
[EventCountry "ITA"]
[SourceTitle "playchess.com"]
[Source "ChessBase"]
[SourceQuality "1"]
[TimeControl "40/5400+30:1800+30"]

1. e4 {[%emt 0:00:03]} e5 {[%emt 0:00:52]} 2. Nf3 {[%emt 0:00:16]} Nc6 {[%emt 0:00:10]} 3. Nc3 {[%emt 0:00:16]} Nf6 {[%emt 0:00:13]} 4. d4 {[%emt 0:00:21]} exd4 {[%emt 0:00:15]} 5. Nxd4 {[%emt 0:00:12]} Bb4 {[%emt 0:00:25]} 6. Nxc6 {[%emt 0:00:26]} bxc6 {[%emt 0:00:28]} 7. Bd3 {[%emt 0:00:17]} O-O {[%emt 0:00:17]} 8. O-O {[%emt 0:00:13]} Re8 {[%emt 0:01:48]} 9. Qf3 {[%emt 0:02:48]} Rb8 {[%emt 0:01:34]} 10. h3 {[%emt 0:01:27]} Bd6 {[%emt 0:13:10]} 11. Ne2 {[%emt 0:07:25]} Be5 {[%emt 0:05:17]} 12. c3 {[%emt 0:01:48]} d5 {[%emt 0:00:53]} 13. exd5 {[%emt 0:00:56]} cxd5 {[%emt 0:00:27]} 14. b3 {[%emt 0:01:26]} Bb7 {[%emt 0:11:32]} 15. Bf4 {[%emt 0:14:41]} d4 {[%emt 0:05:59]} 16. Qg3 {[%emt 0:00:20]} Nh5 {[%emt 0:01:07]} 17. Qg4 {[%emt 0:00:35]} Nxf4 {[%emt 0:01:27]} 18. Nxf4 {[%emt 0:00:14]} dxc3 {[%emt 0:03:40]} 19. Rad1 {[%emt 0:03:26]} Qf6 {[%emt 0:02:20]} 20. Nh5 {[%emt 0:01:57]} Qc6 {[%emt 0:02:04]} 21. f3 {[%emt 0:09:22]} g6 {[%emt 0:04:40]} 22. Ng3 {[%emt 0:04:00]} Qb6+ {[%emt 0:11:00]} 23. Kh1 {[%emt 0:00:56]} Ba6 {[%emt 0:01:46]} 24. Nf5 {[%emt 0:07:29]} Bxd3 {[%emt 0:09:25]} 25. Rxd3 {[%emt 0:01:34]} Qb5 {[%emt 0:01:24]} 26. Nh6+ {[%emt 0:01:24]} Kg7 {[%emt 0:00:19]} 27. Nf5+ {[%emt 0:00:56]} Kh8 {[%emt 0:00:15]} 28. Rdd1 {[%emt 0:02:22]} c2 {[%emt 0:01:24]} 29. Rc1 {[%emt 0:00:15]} gxf5 {[%emt 0:01:46]} 30. Qxf5 {[%emt 0:00:04]} Bb2 {[%emt 0:03:36]} 31. Qxb5 {[%emt 0:00:22]} Rxb5 {[%emt 0:00:04]} 32. Rxc2 {[%emt 0:00:11]} Be5 {[%emt 0:00:13]} 33. Rd1 {[%emt 0:02:19]} Bd6 {[%emt 0:00:13]} 34. Kg1 {[%emt 0:02:37]} Bg3 {[%emt 0:01:56]} 35. f4 {[%emt 0:02:57]} Bxf4 {[%emt 0:02:20]} 36. Rf1 {[%emt 0:00:11]} Bg3 {[%emt 0:02:54]} 37. Rxf7 {[%emt 0:00:58]} Re1+ {[%emt 0:00:25]} 38. Rf1 {[%emt 0:00:05]} Rbe5 {[%emt 0:01:04]} 39. Rc1 {[%emt 0:00:36]} Rxc1 {[%emt 0:00:18]} 40. Rxc1 {[%emt 0:00:00]} Re1+ {[%emt 0:00:00]} 41. Rxe1 {[%emt 0:00:16]} Bxe1 {[%emt 0:00:07]} 42. Kf1 {[%emt 0:00:21]} Bb4 {[%emt 0:00:06]} 43. Ke2 {[%emt 0:00:27]} Kg7 {[%emt 0:00:28]} 44. Kf3 {[%emt 0:00:26]} Kf6 {[%emt 0:00:09]} 45. Ke4 {[%emt 0:08:54]} *

[Event "FIDE WYCC Girls U18 2023"]
[Site "Montesilvano"]
[Date "2023.11.18"]
[Round "6.25"]
[White "Lindstad, Livia"]
[Black "Nielsen-Refs, Ingrid Elmer"]
[Result "1-0"]
[ECO "B33"]
[WhiteElo "1848"]
[BlackElo "1676"]
[Annotator "NA"]
[PlyCount "113"]
[EventDate "2023.11.13"]
[EventType "swiss"]
[EventCountry "ITA"]
[SourceTitle "playchess.com"]
[Source "ChessBase"]
[SourceQuality "1"]
[TimeControl "40/5400+30:1800+30"]

1. e4 {[%emt 0:00:05]} c5 {[%emt 0:00:09]} 2. Nf3 {[%emt 0:00:09]} Nc6 {[%emt 0:00:12]} 3. d4 {[%emt 0:00:14]} cxd4 {[%emt 0:00:07]} 4. Nxd4 {[%emt 0:00:11]} Nf6 {[%emt 0:00:23]} 5. Nc3 {[%emt 0:00:21]} e5 {[%emt 0:00:15]} 6. Ndb5 {[%emt 0:02:33]} d6 {[%emt 0:00:14]} 7. Bg5 {[%emt 0:01:56]} a6 {[%emt 0:00:29]} 8. Na3 {[%emt 0:03:03]} b5 {[%emt 0:00:07]} 9. Nd5 {[%emt 0:00:46]} Be7 {[%emt 0:00:08]} 10. Nxe7 {[%emt 0:03:44]} Nxe7 {[%emt 0:01:35]} 11. Qf3 {[%emt 0:05:12]} Nd7 {[%emt 0:19:50]} 12. O-O-O {[%emt 0:04:04]} Nc5 {[%emt 0:02:30]} 13. Be3 {[%emt 0:05:05]} Qc7 {[%emt 0:02:26]} 14. Bxb5+ {[%emt 0:05:11]} Nc6 {[%emt 0:19:29]} 15. Bxc5 {[%emt 0:01:51]} dxc5 {[%emt 0:00:55]} 16. Bxc6+ {[%emt 0:01:14]} Qxc6 {[%emt 0:01:04]} 17. Nc4 {[%emt 0:01:13]} f6 {[%emt 0:07:37]} 18. Qh5+ {[%emt 0:06:18]} Ke7 {[%emt 0:07:45]} 19. Nd6 {[%emt 0:07:29]} Be6 {[%emt 0:04:36]} 20. Nf5+ {[%emt 0:03:53]} Bxf5 {[%emt 0:02:47]} 21. Qxf5 {[%emt 0:00:48]} Rab8 {[%emt 0:01:27]} 22. Rd3 {[%emt 0:05:08]} c4 {[%emt 0:03:54]} 23. Rg3 {[%emt 0:03:46]} g6 {[%emt 0:03:00]} 24. Qf3 {[%emt 0:00:35]} Rb7 {[%emt 0:04:09]} 25. Rd1 {[%emt 0:02:20]} Rhb8 {[%emt 0:03:24]} 26. Qa3+ {[%emt 0:01:20]} Ke6 {[%emt 0:01:41]} 27. b3 {[%emt 0:04:54]} Rb6 {[%emt 0:05:33]} 28. Re3 {[%emt 0:04:47]} Rc8 {[%emt 0:03:18]} 29. b4 {[%emt 0:01:51]} Qb5 {[%emt 0:02:35]} 30. c3 {[%emt 0:00:42]} Ra8 {[%emt 0:00:59]} 31. Rd5 {[%emt 0:00:28]} Qc6 {[%emt 0:00:59]} 32. Rc5 {[%emt 0:01:58]} Qd6 {[%emt 0:01:06]} 33. Qa5 {[%emt 0:08:06]} Rd8 {[%emt 0:01:00]} 34. Rd5 {[%emt 0:00:34]} Qc7 {[%emt 0:00:43]} 35. Rxd8 {[%emt 0:01:29]} Qxd8 {[%emt 0:00:07]} 36. Qc5 {[%emt 0:00:11]} Rd6 {[%emt 0:01:11]} 37. Qxc4+ {[%emt 0:01:09]} Ke7 {[%emt 0:00:05]} 38. Qe2 {[%emt 0:01:26]} Qc7 {[%emt 0:00:41]} 39. Rh3 {[%emt 0:01:29]} Kf8 {[%emt 0:00:28]} 40. Qe3 {[%emt 0:00:00]} Kg8 {[%emt 0:00:00]} 41. Qe2 {[%emt 0:10:34]} Qc6 {[%emt 0:06:23]} 42. Rd3 {[%emt 0:01:55]} Qc4 {[%emt 0:02:15]} 43. Re3 {[%emt 0:00:44]} Qc6 {[%emt 0:00:30]} 44. Qc2 {[%emt 0:02:49]} Kg7 {[%emt 0:03:29]} 45. Rd3 {[%emt 0:04:33]} Re6 {[%emt 0:01:10]} 46. f3 {[%emt 0:00:13]} Re7 {[%emt 0:03:40]} 47. Kb2 {[%emt 0:04:46]} Qc4 {[%emt 0:03:24]} 48. Qd2 {[%emt 0:01:13]} Qb5 {[%emt 0:01:17]} 49. Rd6 {[%emt 0:01:03]} Ra7 {[%emt 0:04:18]} 50. Qe3 {[%emt 0:01:26]} Ra8 {[%emt 0:06:39]} 51. Qd3 {[%emt 0:00:30]} Qa4 {[%emt 0:00:53]} 52. Rd7+ {[%emt 0:00:42]} Kh6 {[%emt 0:00:36]} 53. Qd2+ {[%emt 0:00:11]} g5 {[%emt 0:00:22]} 54. Qd6 {[%emt 0:00:29]} Kg6 {[%emt 0:01:30]} 55. Qe7 {[%emt 0:00:34]} Rh8 {[%emt 0:01:32]} 56. Qg7+ {[%emt 0:00:24]} Kh5 {[%emt 0:00:20]} 57. g4+ {[%emt 0:00:11]} 1-0

[Event "FIDE WYCC Girls U18 2023"]
[Site "Montesilvano"]
[Date "2023.11.18"]
[Round "6.26"]
[White "Hoanca, Alexia-Ioana"]
[Black "Sukyte, Kotryna"]
[Result "*"]
[ECO "B28"]
[WhiteElo "1830"]
[BlackElo "1651"]
[Annotator "NA"]
[PlyCount "53"]
[EventDate "2023.11.13"]
[EventType "swiss"]
[EventCountry "ITA"]
[SourceTitle "playchess.com"]
[Source "ChessBase"]
[SourceQuality "1"]
[TimeControl "40/5400+30:1800+30"]

1. e4 {[%emt 0:00:01]} c5 {[%emt 0:00:06]} 2. Nf3 {[%emt 0:00:06]} a6 {[%emt 0:00:13]} 3. c3 {[%emt 0:00:14]} d5 {[%emt 0:00:12]} 4. exd5 {[%emt 0:00:12]} Qxd5 {[%emt 0:00:09]} 5. d4 {[%emt 0:00:13]} e6 {[%emt 0:00:31]} 6. Be3 {[%emt 0:01:15]} cxd4 {[%emt 0:01:01]} 7. cxd4 {[%emt 0:01:24]} Nf6 {[%emt 0:00:44]} 8. Nc3 {[%emt 0:01:18]} Qd6 {[%emt 0:00:25]} 9. Be2 {[%emt 0:02:26]} Be7 {[%emt 0:01:26]} 10. O-O {[%emt 0:02:14]} O-O {[%emt 0:01:59]} 11. Ne5 {[%emt 0:02:39]} Rd8 {[%emt 0:16:44]} 12. Bf3 {[%emt 0:11:01]} Nbd7 {[%emt 0:11:44]} 13. Nc4 {[%emt 0:09:14]} Qc7 {[%emt 0:07:52]} 14. Qe2 {[%emt 0:11:38]} Rb8 {[%emt 0:06:48]} 15. a4 {[%emt 0:03:27]} Nb6 {[%emt 0:19:37]} 16. Nxb6 {[%emt 0:04:40]} Qxb6 {[%emt 0:00:18]} 17. a5 {[%emt 0:00:30]} Qb3 {[%emt 0:07:52]} 18. Bf4 {[%emt 0:12:34]} Ra8 {[%emt 0:04:24]} 19. Na4 {[%emt 0:01:13]} Bd7 {[%emt 0:00:55]} 20. Nb6 {[%emt 0:02:32]} Bb5 {[%emt 0:00:58]} 21. Qe3 {[%emt 0:11:47]} Qxe3 {[%emt 0:02:00]} 22. fxe3 {[%emt 0:00:12]} Bxf1 {[%emt 0:00:55]} 23. Nxa8 {[%emt 0:01:17]} Bc4 {[%emt 0:04:47]} 24. Nb6 {[%emt 0:04:13]} Bd5 {[%emt 0:00:56]} 25. Rc1 {[%emt 0:04:37]} Bb4 {[%emt 0:01:44]} 26. Nxd5 {[%emt 0:04:31]} Nxd5 {[%emt 0:00:20]} 27. Bxd5 {[%emt 0:00:04]} *

[Event "FIDE WYCC Girls U18 2023"]
[Site "Montesilvano"]
[Date "2023.11.18"]
[Round "6.27"]
[White "Chavez Echeverria, Ana Karen"]
[Black "Alexandrova, Angelina"]
[Result "0-1"]
[ECO "D00"]
[WhiteElo "1230"]
[BlackElo "1814"]
[Annotator "NA"]
[PlyCount "94"]
[EventDate "2023.11.13"]
[EventType "swiss"]
[EventCountry "ITA"]
[SourceTitle "playchess.com"]
[Source "ChessBase"]
[SourceQuality "1"]
[TimeControl "40/5400+30:1800+30"]

1. d4 {[%emt 0:00:10]} d5 {[%emt 0:00:02]} 2. Bf4 {[%emt 0:00:27]} c5 {[%emt 0:00:38]} 3. e3 {[%emt 0:00:15]} Nf6 {[%emt 0:00:16]} 4. Nf3 {[%emt 0:01:04]} Nc6 {[%emt 0:00:30]} 5. Be2 {[%emt 0:02:37]} Qb6 {[%emt 0:08:36]} 6. Nc3 {[%emt 0:02:45]} a6 {[%emt 0:01:55]} 7. b3 {[%emt 0:03:13]} cxd4 {[%emt 0:01:50]} 8. exd4 {[%emt 0:03:21]} Qa5 {[%emt 0:04:37]} 9. Qd2 {[%emt 0:01:54]} e5 {[%emt 0:08:47]} 10. Nxd5 {[%emt 0:19:07]} Nxd5 {[%emt 0:06:33]} 11. Qxa5 {[%emt 0:02:05]} Nxa5 {[%emt 0:00:06]} 12. Bd2 {[%emt 0:01:22]} Bb4 {[%emt 0:03:35]} 13. dxe5 {[%emt 0:01:28]} Bc3 {[%emt 0:03:02]} 14. Rd1 {[%emt 0:04:23]} Bf5 {[%emt 0:01:36]} 15. Bd3 {[%emt 0:01:47]} Bxd2+ {[%emt 0:03:24]} 16. Rxd2 {[%emt 0:01:19]} Bxd3 {[%emt 0:00:14]} 17. cxd3 {[%emt 0:00:55]} O-O {[%emt 0:00:28]} 18. O-O {[%emt 0:00:20]} Rad8 {[%emt 0:02:35]} 19. Rc1 {[%emt 0:04:24]} Nc6 {[%emt 0:01:03]} 20. Rc4 {[%emt 0:04:07]} h6 {[%emt 0:08:33]} 21. g3 {[%emt 0:01:41]} Rd7 {[%emt 0:01:33]} 22. d4 {[%emt 0:04:38]} Rfd8 {[%emt 0:00:35]} 23. Rc1 {[%emt 0:04:05]} Nde7 {[%emt 0:03:27]} 24. Rcd1 {[%emt 0:00:23]} Rd5 {[%emt 0:00:16]} 25. g4 {[%emt 0:05:09]} Ng6 {[%emt 0:00:06]} 26. Kf1 {[%emt 0:13:04]} Nf4 {[%emt 0:00:22]} 27. Ke1 {[%emt 0:03:17]} Ne6 {[%emt 0:00:27]} 28. h3 {[%emt 0:00:48]} Nexd4 {[%emt 0:01:12]} 29. Nxd4 {[%emt 0:02:26]} Rxd4 {[%emt 0:00:12]} 30. f3 {[%emt 0:00:45]} Rxd2 {[%emt 0:00:08]} 31. Rxd2 {[%emt 0:00:05]} Rxd2 {[%emt 0:00:04]} 32. Kxd2 {[%emt 0:00:08]} Nxe5 {[%emt 0:00:03]} 33. Ke3 {[%emt 0:00:24]} Kf8 {[%emt 0:00:29]} 34. Ke4 {[%emt 0:00:13]} Nc6 {[%emt 0:00:12]} 35. a3 {[%emt 0:00:11]} Ke7 {[%emt 0:00:30]} 36. h4 {[%emt 0:00:25]} Kd6 {[%emt 0:00:38]} 37. Kd3 {[%emt 0:00:41]} Kd5 {[%emt 0:00:51]} 38. f4 {[%emt 0:01:00]} Na5 {[%emt 0:00:19]} 39. b4 {[%emt 0:00:13]} Nc4 {[%emt 0:00:06]} 40. h5 {[%emt 0:00:00]} f6 {[%emt 0:00:00]} 41. a4 {[%emt 0:03:34]} Nb2+ {[%emt 0:00:37]} 42. Kc2 {[%emt 0:00:43]} Nxa4 {[%emt 0:00:09]} 43. Kb3 {[%emt 0:00:11]} b5 {[%emt 0:00:14]} 44. Kc2 {[%emt 0:01:32]} Ke4 {[%emt 0:00:12]} 45. f5 {[%emt 0:00:07]} Kf4 {[%emt 0:00:21]} 46. Kd2 {[%emt 0:00:16]} Kxg4 {[%emt 0:00:07]} 47. Ke3 {[%emt 0:00:05]} Kxh5 0-1

[Event "FIDE WYCC Girls U18 2023"]
[Site "Montesilvano"]
[Date "2023.11.18"]
[Round "6.28"]
[White "Galli, Maria Vittoria"]
[Black "Hernandez Ortega, Carolina"]
[Result "*"]
[WhiteElo "1452"]
[BlackElo "1796"]
[Annotator "NA"]
[PlyCount "98"]
[EventDate "2023.11.13"]
[EventType "swiss"]
[EventCountry "ITA"]
[SourceTitle "playchess.com"]
[Source "ChessBase"]
[SourceQuality "1"]
[TimeControl "40/5400+30:1800+30"]

1. e4 {[%emt 0:00:04]} e5 {[%emt 0:00:09]} 2. Nf3 {[%emt 0:00:07]} Nc6 {[%emt 0:00:08]} 3. Bb5 {[%emt 0:00:11]} a6 {[%emt 0:00:12]} 4. Ba4 {[%emt 0:00:07]} Nf6 {[%emt 0:00:16]} 5. O-O {[%emt 0:00:16]} Be7 {[%emt 0:00:19]} 6. Re1 {[%emt 0:01:59]} b5 {[%emt 0:00:24]} 7. Bb3 {[%emt 0:00:11]} d6 {[%emt 0:00:27]} 8. h3 {[%emt 0:00:37]} O-O {[%emt 0:01:07]} 9. c3 {[%emt 0:02:24]} Nb8 {[%emt 0:01:14]} 10. d4 {[%emt 0:00:54]} Nbd7 {[%emt 0:00:11]} 11. Bc2 {[%emt 0:03:54]} Bb7 {[%emt 0:02:43]} 12. b4 {[%emt 0:02:13]} Re8 {[%emt 0:01:54]} 13. Nbd2 {[%emt 0:01:44]} Bf8 {[%emt 0:01:05]} 14. Bb2 {[%emt 0:04:29]} g6 {[%emt 0:03:00]} 15. a4 {[%emt 0:06:03]} Bg7 {[%emt 0:07:37]} 16. axb5 {[%emt 0:07:56]} axb5 {[%emt 0:00:12]} 17. dxe5 {[%emt 0:03:34]} Nxe5 {[%emt 0:00:44]} 18. Nxe5 {[%emt 0:00:44]} dxe5 {[%emt 0:00:34]} 19. Qe2 {[%emt 0:02:00]} Qd6 {[%emt 0:13:39]} 20. Nb3 {[%emt 0:01:52]} Rxa1 {[%emt 0:02:56]} 21. Rxa1 {[%emt 0:02:59]} Qb6 {[%emt 0:04:26]} 22. Nc5 {[%emt 0:03:06]} Bc8 {[%emt 0:01:57]} 23. Bb3 {[%emt 0:03:41]} Nd7 {[%emt 0:02:18]} 24. Qf3 {[%emt 0:06:33]} Qf6 {[%emt 0:01:44]} 25. Qxf6 {[%emt 0:02:27]} Bxf6 {[%emt 0:00:52]} 26. Nxd7 {[%emt 0:01:46]} Bxd7 {[%emt 0:00:06]} 27. Ra7 {[%emt 0:01:42]} Bd8 {[%emt 0:02:15]} 28. Bc1 {[%emt 0:03:59]} Kg7 {[%emt 0:01:14]} 29. Bd1 {[%emt 0:01:07]} Bc6 {[%emt 0:08:27]} 30. f3 {[%emt 0:03:29]} Re7 {[%emt 0:03:15]} 31. Be2 {[%emt 0:02:58]} Rd7 {[%emt 0:01:58]} 32. Kf2 {[%emt 0:00:29]} Kf6 {[%emt 0:04:05]} 33. Ra5 {[%emt 0:01:12]} Bb7 {[%emt 0:00:22]} 34. Rxb5 {[%emt 0:02:13]} c6 {[%emt 0:00:28]} 35. Rc5 {[%emt 0:04:50]} Bb6 {[%emt 0:00:24]} 36. Be3 {[%emt 0:00:02]} Bxc5 {[%emt 0:00:11]} 37. Bxc5 {[%emt 0:00:04]} Rd2 {[%emt 0:02:18]} 38. Ke3 {[%emt 0:00:32]} Ra2 {[%emt 0:01:16]} 39. g4 {[%emt 0:02:09]} Ba6 {[%emt 0:02:06]} 40. c4 {[%emt 0:00:00]} Rc2 {[%emt 0:00:00]} 41. g5+ {[%emt 0:03:22]} Ke6 {[%emt 0:06:20]} 42. Bd3 {[%emt 0:00:19]} Rh2 {[%emt 0:02:07]} 43. b5 {[%emt 0:00:31]} Bb7 {[%emt 0:00:32]} 44. h4 {[%emt 0:01:45]} Rxh4 {[%emt 0:00:30]} 45. b6 {[%emt 0:00:12]} Rh5 {[%emt 0:01:04]} 46. Bb4 {[%emt 0:00:57]} Rxg5 {[%emt 0:00:24]} 47. c5 {[%emt 0:00:20]} f6 {[%emt 0:01:28]} 48. Bc4+ {[%emt 0:00:39]} Ke7 {[%emt 0:02:44]} 49. Kf2 {[%emt 0:00:35]} f5 {[%emt 0:01:03]} *

[Event "FIDE WYCC Girls U18 2023"]
[Site "Montesilvano"]
[Date "2023.11.18"]
[Round "6.29"]
[White "Egger, Stefanie"]
[Black "Ajradinoska, Indzi"]
[Result "1-0"]
[ECO "D35"]
[WhiteElo "1784"]
[BlackElo "1594"]
[Annotator "NA"]
[PlyCount "90"]
[EventDate "2023.11.13"]
[EventType "swiss"]
[EventCountry "ITA"]
[SourceTitle "playchess.com"]
[Source "ChessBase"]
[SourceQuality "1"]
[TimeControl "40/5400+30:1800+30"]

1. d4 {[%emt 0:00:03]} e6 {[%emt 0:00:08]} 2. c4 {[%emt 0:00:04]} Nf6 {[%emt 0:00:05]} 3. Nc3 {[%emt 0:00:04]} d5 {[%emt 0:00:03]} 4. cxd5 {[%emt 0:00:05]} exd5 {[%emt 0:00:06]} 5. Bg5 {[%emt 0:00:04]} Be7 {[%emt 0:00:20]} 6. e3 {[%emt 0:00:19]} O-O {[%emt 0:00:15]} 7. Bd3 {[%emt 0:00:17]} c6 {[%emt 0:00:44]} 8. Qc2 {[%emt 0:00:16]} h6 {[%emt 0:00:37]} 9. Bh4 {[%emt 0:00:34]} Nbd7 {[%emt 0:00:57]} 10. Nge2 {[%emt 0:00:28]} Re8 {[%emt 0:01:38]} 11. O-O {[%emt 0:00:41]} Nf8 {[%emt 0:09:36]} 12. f3 {[%emt 0:02:25]} Bb4 {[%emt 0:01:27]} 13. Bf2 {[%emt 0:08:33]} Qe7 {[%emt 0:03:18]} 14. a3 {[%emt 0:03:17]} Bxc3 {[%emt 0:05:13]} 15. Nxc3 {[%emt 0:00:39]} Bd7 {[%emt 0:00:34]} 16. Rfe1 {[%emt 0:01:16]} Rad8 {[%emt 0:03:27]} 17. Rad1 {[%emt 0:00:52]} Bc8 {[%emt 0:02:14]} 18. Bh4 {[%emt 0:04:14]} Qd6 {[%emt 0:00:56]} 19. Bf2 {[%emt 0:14:38]} Qe7 {[%emt 0:00:08]} 20. Bh4 {[%emt 0:06:59]} Qd6 {[%emt 0:00:08]} 21. Kh1 {[%emt 0:00:05]} N8d7 {[%emt 0:07:37]} 22. Bg3 {[%emt 0:00:48]} Qe7 {[%emt 0:00:35]} 23. Bc7 {[%emt 0:00:21]} c5 {[%emt 0:02:28]} 24. Bxd8 {[%emt 0:01:31]} Qxd8 {[%emt 0:00:10]} 25. dxc5 {[%emt 0:00:21]} Nxc5 {[%emt 0:00:45]} 26. Bf5 {[%emt 0:01:12]} Be6 {[%emt 0:02:31]} 27. Bxe6 {[%emt 0:03:41]} fxe6 {[%emt 0:00:02]} 28. Nxd5 {[%emt 0:00:43]} exd5 {[%emt 0:01:26]} 29. Qxc5 {[%emt 0:00:34]} b6 {[%emt 0:00:06]} 30. Qd4 {[%emt 0:00:32]} Qc7 {[%emt 0:00:33]} 31. Rc1 {[%emt 0:01:09]} Qf7 {[%emt 0:00:36]} 32. Rc3 {[%emt 0:01:30]} Qh5 {[%emt 0:00:08]} 33. Rec1 {[%emt 0:01:11]} Qf5 {[%emt 0:00:48]} 34. Qd3 {[%emt 0:00:50]} Qe6 {[%emt 0:00:14]} 35. Kg1 {[%emt 0:01:07]} a5 {[%emt 0:00:59]} 36. Re1 {[%emt 0:03:13]} Qf7 {[%emt 0:00:58]} 37. e4 {[%emt 0:01:46]} Qh5 {[%emt 0:00:15]} 38. Qb5 {[%emt 0:04:24]} Qh4 {[%emt 0:01:06]} 39. Rce3 {[%emt 0:01:22]} dxe4 {[%emt 0:00:43]} 40. fxe4 {[%emt 0:00:00]} Rf8 {[%emt 0:00:00]} 41. Qe2 {[%emt 0:09:54]} Qf4 {[%emt 0:02:13]} 42. Rf3 {[%emt 0:01:08]} Qe5 {[%emt 0:00:07]} 43. Kh1 {[%emt 0:03:37]} Re8 {[%emt 0:00:29]} 44. Rb3 {[%emt 0:07:17]} Nxe4 {[%emt 0:02:16]} 45. Re3 {[%emt 0:01:14]} Nc3 1-0